Cogmind - Beta 16.1 @@@ ROGUE MODE // 2026.03.01 @ 16:39:58 Player: Big Jerry Result: Destroyed by O3-RKO(R) with Subdweller Laser Performance ------------- Evolutions (0) 0 Regions Visited (2) 400 Robots Destroyed (25) 125 Value Destroyed (667) 667 Prototype IDs (2) 40 Alien Tech Used (0) 0 Bonus (0) 0 TOTAL SCORE: 1232 Bonus ------- None Cogmind --------- Core Integrity 0/250 Matter 203/300 Energy 96/100 System Corruption 0% Temperature Cool (8) Movement Treading (160) Location -10/Subcaves Parts ------- > --- POWER (1) -------- (None) > --- PROPULSION (2) --- Light Treads Spiked Treads > --- UTILITY (2) ------ Small Storage Unit Structural Scanner > --- WEAPON (2) ------- (None) > --- INVENTORY (8) ---- Light Treads Weight Redist. System Structural Scanner Authchip [R/Combat] Authchip [Propulsion] Light Assault Rifle Peak State ------------ > --- POWER ------------ Ion Engine > --- PROPULSION ------- Spiked Treads Aluminum Leg > --- UTILITY ---------- Small Storage Unit Structural Scanner > --- WEAPON ----------- Light Assault Rifle Light Cannon > --- INVENTORY -------- Light Ion Engine Light Treads Light Treads Weight Redist. System Structural Scanner Authchip [R/Combat] Authchip [Propulsion] Grenade Launcher [Rating: 9] Favorites ----------- Power Ion Engine Engine Ion Engine Propulsion Aluminum Leg Treads Spiked Treads Leg Aluminum Leg Utility Small Storage Unit Device Structural Scanner Storage Small Storage Unit Protection Light Armor Plating Weapon Light Assault Rifle Energy Gun Small Laser Ballistic Gun Light Assault Rifle Ballistic Cannon Light Cannon Launcher Grenade Launcher Build | -11 -10 -10 ------- Run | Yrd Mat Sub Slots Evolved . | . . . Power . | . . . Propulsion . | . . . Utility . | . . . Weapon . | . . . Parts Attached 25 | 6 15 4 Power 4 | 1 2 1 Engine 4 | 1 2 1 Core . | . . . Reactor . | . . . Propulsion 9 | 2 5 2 Treads 2 | . . 2 Leg 7 | 2 5 . Wheel . | . . . Hover . | . . . Flight . | . . . Utility 5 | 1 4 . Device 1 | . 1 . Storage 3 | 1 2 . Processor . | . . . Hackware . | . . . Protection 1 | . 1 . Artifact . | . . . Weapon 7 | 2 4 1 Energy Gun 2 | 1 1 . Energy Cannon . | . . . Ballistic Gun 3 | 1 2 . Ballistic Cannon 1 | . 1 . Launcher 1 | . . 1 Special Weapon . | . . . Impact Weapon . | . . . Slashing Weapon . | . . . Piercing Weapon . | . . . Special Melee Weapon . | . . . Unidentified Prototypes . | . . . Parts Lost 6 | . 2 4 Power 2 | . . 2 Propulsion 1 | . 1 . Utility 1 | . 1 . Weapon 2 | . . 2 Highest Loss Streak 3 | . 2 3 To Critical Strikes . | . . . Average Backups 7 | 2 7 7 Power . | . 1 . Propulsion 1 | 1 2 1 Utility 3 | . 3 4 Weapon 1 | . 1 1 Tool/Special . | . . . Unused Backups 5 | . . 5 Power . | . . . Propulsion 1 | . . 1 Utility 4 | . . 4 Weapon . | . . . Tool/Special . | . . . Average Slot Usage (%) 95 | . 97 93 Engine 12 | . 13 11 Treads 6 | . . 17 Leg 21 | . 27 10 Device 9 | . 7 14 Storage 15 | . 15 14 Protection 2 | . 3 . Energy Gun 4 | . 7 . Ballistic Gun 12 | . 13 9 Ballistic Cannon 9 | . 7 12 Launcher 1 | . . 2 Peak Build Rating 9 | 6 8 9 Average Rating 7 | 4 7 8 On Entrance 4 | . 6 8 Avg Prop Armor Cover (%) . | . . . Naked Turns . | . . . Heaviest Build 17 | 12 15 17 Greatest Support 40 | 20 20 40 Greatest Overweight (x) 2 | 2 1 . Average Overweight (x) . | . . . Largest Inventory Capacity 8 | 8 8 8 Average Capacity 7 | 7 8 8 Most Carried 8 | 4 8 8 Average Carried 7 | 2 7 7 Final Capacity 8 | 8 8 8 Final Carried 8 | 4 8 6 Class Distribution -------------------- 94% | Mutant 5% | Scavenger-Mutant Dominant Class ---------------- Mutant | -10/Materials Mutant | -10/Subcaves Resources | -11 -10 -10 ----------- Run | Yrd Mat Sub Matter Collected 734 | 252 416 66 Remotely . | . . . Salvage Created 759 | . 711 48 Parts 40 | . 36 4 Haulers Intercepted 2 | . 2 . Recyclers Shooed 1 | . 1 . Parts Field Recycled . | . . . Retrieved Matter . | . . . Parts Self-Destructed 10 | . . 10 Prevented . | . . . Parts Restored . | . . . Kills | -11 -10 -10 ------- Run | Yrd Mat Sub Combat Hostiles Destroyed 20 | . 16 4 Guns 14 | . 12 2 Cannons 6 | . 4 2 Classes Destroyed 6 | . 5 1 Hauler 2 | . 2 . Operator 1 | . 1 . Watcher 2 | . 2 . Swarmer 5 | . 2 3 Grunt 14 | . 14 . Subdweller 1 | . . 1 Best Kill Streak 3 | . 3 3 Combat Bots Only 3 | . 3 3 Max Kills in Single Turn 1 | . 1 1 Gunslinging . | . . . Exploded . | . . . Melee . | . . . Uniques/NPCs Destroyed . | . . . Combat | -11 -10 -10 -------- Run | Yrd Mat Sub Hostile Shots Fired 124 | . 86 38 Missed 30 | . 20 10 Hits 94 | . 66 28 Projectile 94 | . 66 28 Critical Strikes 1 | . 1 . Damage Taken 1286 | . 729 557 Core 252 | . 166 86 Absorbed by Shields . | . . . Core Remaining (%) 100 | 100 . . Volleys Fired 75 | . 62 13 Largest 2 | . 2 2 Hottest 60 | . 60 60 Shots Fired 149 | . 123 26 Gun 105 | . 97 8 Cannon 39 | . 26 13 Launcher 5 | . . 5 Special . | . . . Kinetic 108 | . 87 21 Thermal 36 | . 36 . Explosive 5 | . . 5 Electromagnetic . | . . . Robot Hit Streak 14 | . 14 7 Robot Miss Streak 3 | . 3 3 Penetration Max . | . . . Secondary Targets . | . . . Shots Hit Robots 76 | . 61 15 Core Hits 47 | 1 40 6 Critical Kills . | . . . Critical Parts Destroyed . | . . . Critical Strikes 2 | . 2 . Blast 2 | . 2 . Melee Attacks . | . . . Impact . | . . . Slashing . | . . . Piercing . | . . . Sneak Attacks . | . . . Combat Hostiles . | . . . Follow-up Attacks . | . . . Damage Inflicted 1280 | 3 967 310 Guns 684 | . 642 42 Cannons 433 | . 307 126 Explosions 142 | . . 142 Melee . | . . . Ramming 21 | 3 18 . Kinetic 808 | . 640 168 Thermal 309 | . 309 . Explosive 142 | . . 142 Electromagnetic . | . . . Impact . | . . . Slashing . | . . . Piercing . | . . . Highest Corruption . | . . . Average Corruption . | . . . Corruption Purged . | . . . Corruption Blocked . | . . . Overload Shots . | . . . Overflow Damage . | . . . Projectiles . | . . . Explosions . | . . . Melee . | . . . Knockbacks 9 | . 7 2 Impact 1 | . 1 . Kinetic 8 | . 6 2 Secondary . | . . . Self-Inflicted Damage . | . . . Shots . | . . . Rammed . | . . . Targets Rammed 4 | 1 3 . Kicked 4 | 1 3 . Crushed . | . . . Highest Temperature 159 | . 159 . Average Temperature 45 | . 45 . Received Heat Transfer 372 | . 300 72 Siege Activations . | . . . Martial Activations . | . . . Shielding Activations . | . . . Robots Disrupted . | . . . Combat Hostiles . | . . . Robots Corrupted . | . . . Combat Hostiles . | . . . Parts Fried . | . . . Impact Corruptions . | . . . Robots Melted . | . . . Combat Hostiles . | . . . Parts Melted . | . . . Heat Transferred 700 | . 700 . Parts Sabotaged . | . . . Parts Stolen . | . . . Parts Stripped . | . . . Power Chain Reactions . | . . . Alert | -11 -10 -10 ------- Run | Yrd Mat Sub Maximum Alert Level . | . . . Low Security (%) 100 | 100 100 . Level 1 . | . . . Level 2 . | . . . Level 3 . | . . . Level 4 . | . . . Level 5 . | . . . High Security . | . . . Max Security . | . . . Peak Influence 149 | . 149 . Initial . | . . . Average 87 | . 92 . Influence Increases 558 | . 488 70 Destroy 0b10 Robot/C 380 | . 320 60 Destroy 0b10 Robot/NC 25 | . 25 . Destroy Leader 78 | . 68 10 Successful Hack 15 | . 15 . Disable Machine 15 | . 15 . Lose Combat Pursuer 45 | . 45 . Influence Decreases 558 | . 373 185 Entered New Map 56 | . . 56 Time Decay 482 | . 353 129 Lost Part 20 | . 20 . Squads Dispatched 3 | . 3 . Investigation 2 | . 2 . Extermination . | . . . Reinforcement 1 | . 1 . Assault . | . . . Garrison . | . . . Intercept . | . . . Searches Triggered . | . . . Construction Impeded . | . . . Haulers Reinforced . | . . . Active Scanning Responses . | . . . Cargo Convoy Interrupts . | . . . Stealth | -11 -10 -10 --------- Run | Yrd Mat Sub Distress Signals 2 | . 2 . Communications Jammed . | . . . Distress Signals . | . . . Times Spotted 31 | . 25 6 Peak Tracking Total 6 | . 6 3 Tactical Retreats 3 | . 3 . Traps | -11 -10 -10 ------- Run | Yrd Mat Sub Traps Triggered 2 | . 2 . Indirectly . | . . . Trap Hack Attempts . | . . . Triggered . | . . . Disarmed . | . . . Reprogrammed . | . . . Reused . | . . . Traps Extracted . | . . . Installed . | . . . Triggered . | . . . Machines | -11 -10 -10 ---------- Run | Yrd Mat Sub Machines Disabled 1 | . 1 . Max in Single Turn 1 | . 1 . Machines Repaired . | . . . Machines Dismantled . | . . . Machines Sabotaged . | . . . Overloaded Fab Kills . | . . . Hacking | -11 -10 -10 --------- Run | Yrd Mat Sub Machines Accessed 7 | . 7 . Terminals 6 | . 6 . Fabricators . | . . . Repair Stations . | . . . Recycling Units 1 | . 1 . Scanalyzers . | . . . Garrison Access . | . . . Total Hacks 17 | . 17 . Successful 7 | . 7 . Failed 10 | . 10 . Catastrophic 2 | . 2 . Database Lockouts . | . . . Manual . | . . . Terminals 16 | . 16 . Fabricators . | . . . Repair Stations . | . . . Recycling Units 1 | . 1 . Scanalyzers . | . . . Garrison Access . | . . . Terminal Hacks 6 | . 6 . Prototype ID Bank 1 | . 1 . Alert Level 1 | . 1 . Locate Traps 1 | . 1 . Hauler Manifests 1 | . 1 . Zone Layout 2 | . 2 . Fabricator Hacks . | . . . Repair Station Hacks . | . . . Recycling Unit Hacks 1 | . 1 . Report Inventory 1 | . 1 . Scanalyzer . | . . . Garrison Access Hacks . | . . . Unauthorized Hacks . | . . . Terminals . | . . . Fabricators . | . . . Repair Stations . | . . . Recycling Units . | . . . Scanalyzers . | . . . Garrison Access . | . . . Data Cores Recovered . | . . . Used . | . . . Hacking Detections 4 | . 4 . Full Trace Events 2 | . 2 . Feedback Events . | . . . Feedback Blocked . | . . . Robot Schematics Acquired . | . . . Robots Built . | . . . Authchips . | . . . Time . | . . . Total Robot Build Rating . | . . . Part Schematics Acquired . | . . . Parts Built . | . . . Authchips . | . . . Time . | . . . Total Part Build Rating . | . . . Part Studies Acquired . | . . . Parts Repaired . | . . . Time . | . . . Parts Recycled . | . . . Recycled Matter . | . . . Retrieved Matter . | . . . Retrieved Components . | . . . Parts Scanalyzed . | . . . Part Schematics Acquired . | . . . Parts Damaged . | . . . Bothacking | -11 -10 -10 ------------ Run | Yrd Mat Sub Used RIF Installer . | . . . Robots Hacked . | . . . Non-combat . | . . . Combat . | . . . Robot Hacks Applied . | . . . Relay Couplers Released . | . . . Fabnet Peak Effective % . | . . . Robots Rewired . | . . . Allies Hacked . | . . . Hacks Repelled . | . . . Allies | -11 -10 -10 -------- Run | Yrd Mat Sub Total Allies . | . . . Largest Group . | . . . Highest-Rated Group . | . . . Highest-Rated Ally . | . . . Total Orders . | . . . Ally Attacks . | . . . Total Damage . | . . . Kills . | . . . Allies Corrupted . | . . . Allies Melted . | . . . Intel | -11 -10 -10 ------- Run | Yrd Mat Sub Active Infowar (turns) 952 | . 436 516 Structural 952 | . 436 516 Robot Analysis Total . | . . . Derelict Logs Recovered 1 | . . 1 Drone Launches . | . . . Drone Recoveries . | . . . Exploration | -11 -10 -10 ------------- Run | Yrd Mat Sub Turns Passed 1418 | 54 848 516 Spaces Moved 884 | 35 517 332 Core 7 | 7 . . Treads 187 | . . 187 Legs 690 | 28 517 145 Wheels . | . . . Hover . | . . . Flight . | . . . Fastest Speed 50 | 50 120 120 Average Speed 129 | 114 121 142 Slowest Speed 190 | 150 190 160 Overloaded Moves . | . . . Propulsion Burnouts . | . . . Robots Hopped . | . . . Potential Cave-ins . | . . . Cave-ins Triggered . | . . . Exploration Rate (%) 34 | 3 80 20 Regions Visited 2 Branch Regions 1 Pre-discovered Areas 1 | . . 1 Known Exits Taken . | . . . Unknown Exits Taken 2 | 1 1 . Scrap Searched . | . . . Spaces Dug . | . . . Terrain Destroyed 14 | . . 14 Melee . | . . . Projectile . | . . . AOE 14 | . . 14 Terrain Rammed . | . . . Walls Destroyed . | . . . Machines Disabled . | . . . Actions | -11 -10 -10 --------- Run | Yrd Mat Sub Total 1019 | 45 623 351 Wait 6 | . 5 1 Move 882 | 34 516 332 Hop . | . . . Pick Up 12 | 4 8 . Fast Attach 12 | 6 6 . Attach 5 | . 3 2 Detach . | . . . Swap 12 | . 10 2 Drop 11 | . 10 1 Fire 75 | . 62 13 Melee . | . . . Ram . | . . . Kick 4 | 1 3 . Crush . | . . . Escape Stasis . | . . . Rewire . | . . . Trap . | . . . Miscellaneous . | . . . Route ------- -11/Scrapyard -10/Materials (discovered 4 exits: [*Mat x3] / [*Sub]) -10/Subcaves History --------- Turn | Location | Event 9 | -11/Scrapyard | Discovered new exit (range 15) 55 | -11/Scrapyard | Entered Materials 304 | -10/Materials | Build established: Mutant 348 | -10/Materials | Discovered new exit (range 16) 557 | -10/Materials | Discovered new exit (range 16) 591 | -10/Materials | Core integrity fell below 50% 690 | -10/Materials | Discovered new exit (range 7) 782 | -10/Materials | Discovered new exit (range 4) 903 | -10/Materials | Entered Subcaves 904 | -10/Subcaves | Approached by a straggling Scientist 1013 | -10/Subcaves | Learned location of Storage (-8) 1222 | -10/Subcaves | Disturbed a concealed Subdweller 1311 | -10/Subcaves | Core integrity fell below 20% 1327 | -10/Subcaves | Disturbed a concealed Subdweller 1382 | -10/Subcaves | Lost 3 parts (1p2w) 1419 | -10/Subcaves | Destroyed by O3-RKO(R) with Subdweller Laser Last Messages --------------- Flight Unit fries itself beyond repair. Subatomizers dissect the Lgt. Ion Engine. Lgt. Assault Rifle fries itself beyond repair. S-10 Pest destroyed. Lgt. Ion Engine fries itself beyond repair. Acquired 3 matter. Acquired Spk. Treads. Dropped Aluminum Leg. Acquired 15 matter. Ion Engine destroyed. G6-TS9(R) knocked back. G6-TS9(R) destroyed. 6G-JMQ(R) angrily emerges from the Twisted Machinery. Grenade Launcher destroyed. Lgt. Ion Engine destroyed. 6G-JMQ(R) affixes Scrap Shield Fragment to Scrap Shield. Lgt. Cannon destroyed. Subatomizers dissect the Aluminum Leg. Map ----- +----------------------------------------------------+ | ?????????????????????????????????????????????????? | | ?????????????????????????????????????????????????? | | ?????????????????????????????????????????????????? | | ?????????????????????????????????????????????????? | | ?????????????????????????????????????????????????? | | ?????????????????????????????????????????????????? | | ?????????????????????????????????????????????????? | | ?????????????????????????????????????????????????? | | ?????????????????????????????????????????????????? | | ?????????????????????????????????????????????????? | | ?????????????????????????????????????????????????? | | ?????????????????????????????????????????????????? | | ???????????????????????????????? ????????????????? | | ??????????????????????????????? ??????? ##?????? | | ??????????????????????????????? ???????? ###?????? | | ?????????????????????????????? ???????? ##?????? | | ?????????????????????????????? ?????????? ###????? | | ????????????????????????????? ??????? ## #######? | | ???????????????????????????? ?????? ## ######? | | ##### ???????? #####??????? ## ? ## ## ## ### | | ##### ???????? ######??????? ########## ### ### | | ## # ???????? # # #?????? R ##### ## #### # | | ???????? ####### ### #### | | ?? ##????## # ####### ### #### | | ??## ####??##### ## # # ### ## # ## ## | | ??## ####?## ### ### @ #### ### | | ??## ###### = #### ### | | ??### ##### ######### ### | | ???## ## ######## #### | | ???### ## ###### #### | | ??#### # #### ###### # | | ??### ## ####### ##### | | #### u ## #### ! ###??## ##### | | ##### ## ########" ###??### ## | | ##### %##############"" ###???### | | ##### ##########??## "" ######????######### | | ##### ## ##???????## "" #####?????######### | | ## ##???????####" ##??????????????## | | ####?????####" #####???????????????? | | "" "### ??####### ######???????????????? | | ## # """ % ??##" ### ###??????????????????? | | ### """"" ###" "" #####????????????????? | | "" "" ### "" #####????????????????? | | "" "### ##### "" ##????????????????? | | ## ######################### ###????????????????? | | ##############?####?#############????????????????? | | #####?????????????????????######?????????????????? | | ?????????????????????????????????????????????????? | | ?????????????????????????????????????????????????? | | #????????????????????????????????????????????????? | +----------------------------------------------------+ Best States ------------- Heat Dissipation 25 Energy Generation 10 Energy Capacity 250 Matter Stores 353 Matter Capacity 400 Sight Range 16 Terrain Scan Density 10 Armor Coverage 150 Evasion (%) 55 Recoil Reduction 2 Authchip Count 2 Item Schematics ----------------- None Robot Schematics ------------------ None Fabricated ------------ Nothing Repaired ---------- Nothing Studied --------- None Alien Tech Used ----------------- None Achievements -------------- None Challenges ------------ None Game ------ Seed SupersonicScanGenerator Manual? 0 Play Time 00:18:16 Cumulative 47.4 hours Start 2026.03.01 @ 16:22:13 End 2026.03.01 @ 16:39:58 Sessions 1 Manual Loads 0 Difficulty Rogue Special Mode None Game No. 58 Rogue 58 Adventurer 0 Explorer 0 Win Type - Total 0 Types 0/0/0/0/0/0/0/0/0/0 Lore% 33 Gallery% 27 Achievement% 20 Wizard Run 0 Options --------- Layout 1 ASCII 0 Keyboard 0 Movement Numpad Keybinds 0 Fullscreen 1 Font 24/Swanston Map View 50x35 Zoom Use 0% Tactical HUD 0 Map Filters NONE Filters NONE Steam 1 RUN: 533bba9e-3c56-416f-bf57-332e6e8e9fdd